[Event "FIDE World Rapid Chess Championship 2021"]
[White "Costachi, Mihnea"]
[Black "Szpar, Milosz"]
[WhiteFideId "1217518"]
[BlackFideId "1184989"]
[WhiteElo "2443"]
[BlackElo "2315"]
[Result "1-0"]
[Round "12"]
[TimeControl "900+10"]
[Date "2021.12.28"]
[WhiteClock "0:01:40"]
[BlackClock "0:01:04"]

1. d4 {[%clk 0:15:27]}  Nf6 {[%clk 0:15:18]} 2. c4 {[%clk 0:15:27]}  e6 {[%clk 0:15:18]} 3. Nf3 {[%clk 0:15:27]}  c5 {[%clk 0:15:18]} 4. d5 {[%clk 0:15:27]}  d6 {[%clk 0:15:18]} 5. Nc3 {[%clk 0:15:27]}  exd5 {[%clk 0:15:18]} 6. cxd5 {[%clk 0:15:27]}  g6 {[%clk 0:15:18]} 7. Nd2 {[%clk 0:15:27]}  Nbd7 {[%clk 0:15:18]} 8. e4 {[%clk 0:15:27]}  Bg7 {[%clk 0:15:18]} 9. Be2 {[%clk 0:15:27]}  O-O {[%clk 0:15:18]} 10. O-O {[%clk 0:15:27]}  Re8 {[%clk 0:15:18]} 11. h3 {[%clk 0:15:27]}  a6 {[%clk 0:16:00]} 12. a4 {[%clk 0:16:38]}  b6 {[%clk 0:16:00]} 13. Re1 {[%clk 0:16:38]}  Rb8 {[%clk 0:16:00]} 14. Ra2 {[%clk 0:16:40]}  h6 {[%clk 0:12:04]} 15. b3 {[%clk 0:16:40]}  g5 {[%clk 0:12:04]} 16. Bb2 {[%clk 0:16:40]}  Ne5 {[%clk 0:12:04]} 17. Nc4 {[%clk 0:16:23]}  Nxc4 {[%clk 0:11:03]} 18. Bxc4 {[%clk 0:13:18]}  g4 {[%clk 0:11:03]} 19. Bf1 {[%clk 0:13:18]}  gxh3 {[%clk 0:10:20]} 20. gxh3 {[%clk 0:11:55]}  Re5 {[%clk 0:10:20]} 21. f4 {[%clk 0:11:55]}  Rh5 {[%clk 0:10:20]} 22. Qf3 {[%clk 0:11:55]}  Rh4 {[%clk 0:10:20]} 23. Ne2 {[%clk 0:11:55]}  b5 {[%clk 0:06:29]} 24. axb5 {[%clk 0:10:54]}  Rxb5 {[%clk 0:06:29]} 25. Ng3 {[%clk 0:09:33]}  Rb4 {[%clk 0:05:01]} 26. Ba3 {[%clk 0:08:07]}  Rd4 {[%clk 0:04:26]} 27. Rh2 {[%clk 0:08:07]}  Qa5 {[%clk 0:04:14]} 28. b4 {[%clk 0:05:07]}  cxb4 {[%clk 0:04:14]} 29. Bb2 {[%clk 0:05:07]}  b3 {[%clk 0:04:14]} 30. Rc1 {[%clk 0:05:25]}  Bg4 {[%clk 0:02:12]} 31. hxg4 {[%clk 0:04:03]}  Rxh2 {[%clk 0:01:22]} 32. Bxd4 {[%clk 0:04:03]}  Rd2 {[%clk 0:01:22]} 33. g5 {[%clk 0:04:03]}  Rxd4 {[%clk 0:01:04]} 34. gxf6 {[%clk 0:01:40]}  b2 {[%clk 0:01:04]} 35. Qg4 {[%clk 0:01:40]} 1-0


[Site "http://www.Chess.com"]

[Event "FIDE World Rapid Chess Championship 2021"]
[White "Nguyen, Thai Dai Van"]
[Black "Blohberger, Felix"]
[WhiteFideId "358878"]
[BlackFideId "1632051"]
[WhiteElo "2488"]
[BlackElo "2409"]
[Result "0-1"]
[Round "12"]
[TimeControl "900+10"]
[Date "2021.12.28"]
[WhiteClock "0:00:29"]
[BlackClock "0:00:00"]

1. d4 {[%clk 0:15:20]}  Nf6 {[%clk 0:15:08]} 2. c4 {[%clk 0:15:20]}  e6 {[%clk 0:15:08]} 3. Nf3 {[%clk 0:15:20]}  Bb4+ {[%clk 0:15:08]} 4. Bd2 {[%clk 0:15:20]}  a5 {[%clk 0:15:08]} 5. g3 {[%clk 0:15:20]}  b6 {[%clk 0:15:08]} 6. Bg2 {[%clk 0:15:20]}  Bb7 {[%clk 0:15:08]} 7. O-O {[%clk 0:15:20]}  Bxd2 {[%clk 0:15:08]} 8. Qxd2 {[%clk 0:15:20]}  O-O {[%clk 0:15:08]} 9. Nc3 {[%clk 0:15:20]}  Ne4 {[%clk 0:14:20]} 10. Nxe4 {[%clk 0:16:20]}  Bxe4 {[%clk 0:14:20]} 11. Qe3 {[%clk 0:16:20]}  Bb7 {[%clk 0:14:20]} 12. Qd3 {[%clk 0:16:20]}  g6 {[%clk 0:14:20]} 13. d5 {[%clk 0:16:20]}  Na6 {[%clk 0:14:20]} 14. e4 {[%clk 0:14:17]}  Nc5 {[%clk 0:14:20]} 15. Qc2 {[%clk 0:14:17]}  d6 {[%clk 0:14:20]} 16. h4 {[%clk 0:14:17]}  e5 {[%clk 0:14:20]} 17. Ne1 {[%clk 0:12:35]}  f5 {[%clk 0:11:58]} 18. exf5 {[%clk 0:11:42]}  gxf5 {[%clk 0:11:58]} 19. Nd3 {[%clk 0:11:42]}  Nxd3 {[%clk 0:11:58]} 20. Qxd3 {[%clk 0:11:42]}  Qf6 {[%clk 0:11:58]} 21. Qc3 {[%clk 0:11:42]}  f4 {[%clk 0:10:42]} 22. Rae1 {[%clk 0:11:18]}  Qg7 {[%clk 0:09:43]} 23. Kh2 {[%clk 0:09:36]}  Bc8 {[%clk 0:09:19]} 24. Rg1 {[%clk 0:07:23]}  Kh8 {[%clk 0:09:19]} 25. Be4 {[%clk 0:07:11]}  Qh6 {[%clk 0:06:26]} 26. Rg2 {[%clk 0:04:55]}  Bg4 {[%clk 0:06:26]} 27. Rh1 {[%clk 0:04:08]}  Rf6 {[%clk 0:04:41]} 28. Qc1 {[%clk 0:03:12]}  Raf8 {[%clk 0:02:56]} 29. Qc3 {[%clk 0:03:12]}  Qh5 {[%clk 0:03:46]} 30. Re1 {[%clk 0:00:22]}  Qf7 {[%clk 0:03:46]} 31. Kg1 {[%clk 0:00:22]}  Bh3 {[%clk 0:03:46]} 32. g4 {[%clk 0:00:22]}  Bxg2 {[%clk 0:03:46]} 33. Kxg2 {[%clk 0:00:22]}  f3+ {[%clk 0:03:46]} 34. Kh3 {[%clk 0:00:22]}  Rf4 {[%clk 0:01:42]} 35. Qd3 {[%clk 0:00:30]}  h5 {[%clk 0:01:42]} 36. Rg1 {[%clk 0:00:29]}  Rxg4 {[%clk 0:00:00]} 37. Rxg4 {[%clk 0:00:29]}  hxg4+ {[%clk 0:00:00]} 38. Kxg4 {[%clk 0:00:29]}  Qg7+ {[%clk 0:00:00]} 39. Bg6 {[%clk 0:00:29]}  Rf4+ {[%clk 0:00:00]} 40. Kg3 {[%clk 0:00:29]}  Qf6 {[%clk 0:00:00]} 0-1


[Site "http://www.Chess.com"]

[Event "FIDE World Rapid Chess Championship 2021"]
[White "Janik, Igor"]
[Black "Van Foreest, Lucas"]
[WhiteFideId "1159259"]
[BlackFideId "1039792"]
[WhiteElo "2462"]
[BlackElo "2374"]
[Result "0-1"]
[Round "12"]
[TimeControl "900+10"]
[Date "2021.12.28"]
[WhiteClock "0:05:43"]
[BlackClock "0:09:34"]

1. Nf3 {[%clk 0:15:00]}  d5 {[%clk 0:15:00]} 2. b3 {[%clk 0:15:00]}  Bg4 {[%clk 0:15:00]} 3. Bb2 {[%clk 0:15:00]}  Nd7 {[%clk 0:15:00]} 4. d4 {[%clk 0:15:00]}  e6 {[%clk 0:15:00]} 5. Nbd2 {[%clk 0:15:00]}  c6 {[%clk 0:15:00]} 6. g3 {[%clk 0:15:00]}  Bd6 {[%clk 0:15:00]} 7. e4 {[%clk 0:15:00]}  Ne7 {[%clk 0:15:00]} 8. Bg2 {[%clk 0:15:00]}  c5 {[%clk 0:15:00]} 9. exd5 {[%clk 0:14:26]}  Nxd5 {[%clk 0:15:41]} 10. Ne4 {[%clk 0:14:26]}  Be7 {[%clk 0:15:41]} 11. c4 {[%clk 0:14:26]}  N5f6 {[%clk 0:15:41]} 12. Nxc5 {[%clk 0:14:26]}  Nxc5 {[%clk 0:15:41]} 13. dxc5 {[%clk 0:14:26]}  Qc7 {[%clk 0:15:41]} 14. h3 {[%clk 0:14:26]}  Bf5 {[%clk 0:15:41]} 15. Nd4 {[%clk 0:14:26]}  Qa5+ {[%clk 0:15:25]} 16. Qd2 {[%clk 0:13:34]}  Qxd2+ {[%clk 0:15:25]} 17. Kxd2 {[%clk 0:13:34]}  O-O-O {[%clk 0:15:25]} 18. Ke2 {[%clk 0:13:34]}  Bxc5 {[%clk 0:15:25]} 19. Nxf5 {[%clk 0:12:15]}  exf5 {[%clk 0:14:53]} 20. Rhd1 {[%clk 0:12:15]}  Rhe8+ {[%clk 0:14:53]} 21. Kf1 {[%clk 0:12:15]}  Ne4 {[%clk 0:14:53]} 22. Bxe4 {[%clk 0:12:15]}  fxe4 {[%clk 0:14:53]} 23. Bxg7 {[%clk 0:12:15]}  Rxd1+ {[%clk 0:14:53]} 24. Rxd1 {[%clk 0:12:15]}  e3 {[%clk 0:14:53]} 25. fxe3 {[%clk 0:11:57]}  Rxe3 {[%clk 0:14:14]} 26. Rd5 {[%clk 0:11:57]}  b6 {[%clk 0:14:14]} 27. Be5 {[%clk 0:11:57]}  a5 {[%clk 0:14:14]} 28. Bf4 {[%clk 0:11:57]}  Rf3+ {[%clk 0:14:14]} 29. Ke1 {[%clk 0:11:57]}  a4 {[%clk 0:14:14]} 30. bxa4 {[%clk 0:11:57]}  Ra3 {[%clk 0:13:16]} 31. Rf5 {[%clk 0:11:43]}  Rxa2 {[%clk 0:13:16]} 32. Rxf7 {[%clk 0:11:43]}  h5 {[%clk 0:13:16]} 33. Rc7+ {[%clk 0:10:21]}  Kd8 {[%clk 0:12:26]} 34. Rh7 {[%clk 0:10:21]}  Rxa4 {[%clk 0:12:26]} 35. Rxh5 {[%clk 0:10:21]}  Rxc4 {[%clk 0:12:26]} 36. Ke2 {[%clk 0:10:21]}  b5 {[%clk 0:12:26]} 37. Be3 {[%clk 0:10:21]}  Bd6 {[%clk 0:12:26]} 38. g4 {[%clk 0:10:21]}  b4 {[%clk 0:12:26]} 39. Bd2 {[%clk 0:08:34]}  Ke7 {[%clk 0:13:13]} 40. Rb5 {[%clk 0:08:34]}  Ke6 {[%clk 0:13:13]} 41. Kd3 {[%clk 0:08:34]}  Rc8 {[%clk 0:13:13]} 42. h4 {[%clk 0:08:34]}  Rg8 {[%clk 0:12:20]} 43. g5 {[%clk 0:07:41]}  Rh8 {[%clk 0:12:20]} 44. Be1 {[%clk 0:07:41]}  Rf8 {[%clk 0:12:20]} 45. Rb6 {[%clk 0:07:41]}  Rf3+ {[%clk 0:12:03]} 46. Ke2 {[%clk 0:05:56]}  Rb3 {[%clk 0:12:03]} 47. g6 {[%clk 0:06:21]}  Rd3 {[%clk 0:09:09]} 48. Bxb4 {[%clk 0:06:21]}  Rd2+ {[%clk 0:09:09]} 49. Kxd2 {[%clk 0:06:21]}  Kf6 {[%clk 0:09:09]} 50. Rxd6+ {[%clk 0:06:21]}  Kg7 {[%clk 0:09:09]} 51. Bc3+ {[%clk 0:06:21]}  Kh6 {[%clk 0:09:09]} 52. g7+ {[%clk 0:06:21]}  Kh7 {[%clk 0:09:09]} 53. Rh6+ {[%clk 0:06:21]}  Kg8 {[%clk 0:09:09]} 54. Rh8+ {[%clk 0:05:43]}  Kf7 {[%clk 0:09:34]} 55. Rf8+ {[%clk 0:05:43]}  Ke7 {[%clk 0:09:34]} 56. g8=N+ {[%clk 0:05:43]}  Kd7 {[%clk 0:09:34]} 57. Rf6 {[%clk 0:05:43]}  Kc7 {[%clk 0:09:34]} 58. Ne7 {[%clk 0:05:43]}  Kd7 {[%clk 0:09:34]} 59. Nd5 {[%clk 0:05:43]}  Kd8 {[%clk 0:09:34]} 60. Rf7 {[%clk 0:05:43]}  Kc8 {[%clk 0:09:34]} 61. Be5 {[%clk 0:05:43]}  Kd8 {[%clk 0:09:34]} 62. Bc7+ {[%clk 0:05:43]}  Kc8 {[%clk 0:09:34]} 63. Bb6 {[%clk 0:05:43]}  Kb8 {[%clk 0:09:34]} 64. Nb4 {[%clk 0:05:43]}  Ka8 {[%clk 0:09:34]} 65. Rc7 {[%clk 0:05:43]}  Kb8 {[%clk 0:09:34]} 66. Na6+ {[%clk 0:05:43]}  Ka8 {[%clk 0:09:34]} 67. Ra7# {[%clk 0:05:43]} 0-1


[Site "http://www.Chess.com"]

[Event "FIDE World Rapid Chess Championship 2021"]
[White "Jakubowski, Krzysztof"]
[Black "Cuenca Jimenez, Jose Fernando"]
[WhiteFideId "1112848"]
[BlackFideId "2255570"]
[WhiteElo "2399"]
[BlackElo "2421"]
[Result "1/2-1/2"]
[Round "12"]
[TimeControl "900+10"]
[Date "2021.12.28"]
[WhiteClock "0:01:02"]
[BlackClock "0:00:46"]

1. e4 {[%clk 0:15:17]}  e5 {[%clk 0:15:08]} 2. Nf3 {[%clk 0:15:17]}  Nc6 {[%clk 0:15:18]} 3. Bc4 {[%clk 0:15:17]}  Nf6 {[%clk 0:15:18]} 4. d3 {[%clk 0:15:17]}  h6 {[%clk 0:15:18]} 5. O-O {[%clk 0:15:17]}  d6 {[%clk 0:15:18]} 6. c3 {[%clk 0:14:48]}  g5 {[%clk 0:15:25]} 7. a4 {[%clk 0:14:48]}  Bg7 {[%clk 0:15:25]} 8. a5 {[%clk 0:14:48]}  a6 {[%clk 0:15:25]} 9. Nbd2 {[%clk 0:14:48]}  O-O {[%clk 0:15:25]} 10. Bb3 {[%clk 0:14:48]}  Ne7 {[%clk 0:15:25]} 11. Nc4 {[%clk 0:14:48]}  Ng6 {[%clk 0:15:25]} 12. Re1 {[%clk 0:14:48]}  Re8 {[%clk 0:15:21]} 13. Ba4 {[%clk 0:13:26]}  Re7 {[%clk 0:14:15]} 14. Nfd2 {[%clk 0:12:05]}  d5 {[%clk 0:14:15]} 15. Ne3 {[%clk 0:11:33]}  d4 {[%clk 0:12:13]} 16. cxd4 {[%clk 0:10:30]}  exd4 {[%clk 0:12:13]} 17. Nec4 {[%clk 0:10:30]}  b5 {[%clk 0:12:13]} 18. axb6 {[%clk 0:10:30]}  cxb6 {[%clk 0:12:13]} 19. Bb3 {[%clk 0:10:30]}  b5 {[%clk 0:12:13]} 20. Na5 {[%clk 0:10:30]}  Ne5 {[%clk 0:09:24]} 21. Nf1 {[%clk 0:09:24]}  Rc7 {[%clk 0:09:24]} 22. Qe2 {[%clk 0:09:30]}  Bd7 {[%clk 0:07:20]} 23. Bd2 {[%clk 0:09:30]}  Rac8 {[%clk 0:07:20]} 24. Ng3 {[%clk 0:08:27]}  Be6 {[%clk 0:05:33]} 25. h3 {[%clk 0:08:27]}  Ng6 {[%clk 0:03:35]} 26. Nf5 {[%clk 0:08:27]}  Bxf5 {[%clk 0:03:35]} 27. exf5 {[%clk 0:08:27]}  Nh4 {[%clk 0:02:49]} 28. g3 {[%clk 0:06:41]}  Nxf5 {[%clk 0:02:49]} 29. Qf3 {[%clk 0:06:41]}  Qd7 {[%clk 0:01:40]} 30. Re5 {[%clk 0:05:35]}  Nd6 {[%clk 0:01:40]} 31. Bb4 {[%clk 0:05:35]}  Nde8 {[%clk 0:01:40]} 32. Kg2 {[%clk 0:04:39]}  g4 {[%clk 0:00:39]} 33. hxg4 {[%clk 0:04:39]}  Qxg4 {[%clk 0:00:39]} 34. Rae1 {[%clk 0:04:39]}  Qxf3+ {[%clk 0:00:39]} 35. Kxf3 {[%clk 0:04:39]}  Bf8 {[%clk 0:00:39]} 36. Bxf8 {[%clk 0:04:39]}  Kxf8 {[%clk 0:00:39]} 37. Rf5 {[%clk 0:04:39]}  Kg7 {[%clk 0:00:49]} 38. Rf4 {[%clk 0:03:12]}  Rd8 {[%clk 0:00:49]} 39. Re5 {[%clk 0:03:12]}  Rdd7 {[%clk 0:00:49]} 40. g4 {[%clk 0:03:12]}  Rd6 {[%clk 0:00:42]} 41. g5 {[%clk 0:02:38]}  hxg5 {[%clk 0:00:42]} 42. Rxg5+ {[%clk 0:02:38]}  Kf8 {[%clk 0:00:42]} 43. Rgf5 {[%clk 0:02:38]}  Ke7 {[%clk 0:00:42]} 44. Re5+ {[%clk 0:02:38]}  Kd8 {[%clk 0:00:42]} 45. Ba2 {[%clk 0:02:38]}  Kc8 {[%clk 0:00:42]} 46. Bxf7 {[%clk 0:02:38]}  Rxf7 {[%clk 0:00:42]} 47. Rxe8+ {[%clk 0:02:38]}  Kc7 {[%clk 0:00:42]} 48. Ra8 {[%clk 0:02:38]}  Kb6 {[%clk 0:00:00]} 49. b4 {[%clk 0:01:41]}  Rh7 {[%clk 0:00:00]} 50. Rb8+ {[%clk 0:01:41]}  Ka7 {[%clk 0:00:00]} 51. Rf8 {[%clk 0:01:41]}  Nd7 {[%clk 0:00:00]} 52. R8f7 {[%clk 0:01:41]}  Rxf7 {[%clk 0:00:00]} 53. Rxf7 {[%clk 0:01:41]}  Kb8 {[%clk 0:00:00]} 54. Ke4 {[%clk 0:01:41]}  Kc8 {[%clk 0:00:00]} 55. Nb3 {[%clk 0:01:41]}  Kd8 {[%clk 0:00:00]} 56. Nxd4 {[%clk 0:01:00]}  Nf6+ {[%clk 0:00:41]} 57. Ke5 {[%clk 0:01:00]}  Rd5+ {[%clk 0:00:41]} 58. Kxf6 {[%clk 0:01:00]}  Rxd4 {[%clk 0:00:41]} 59. Ra7 {[%clk 0:01:00]}  Rxb4 {[%clk 0:00:41]} 60. Ke5 {[%clk 0:01:00]}  Ra4 {[%clk 0:00:41]} 61. f4 {[%clk 0:01:00]}  b4 {[%clk 0:00:41]} 62. f5 {[%clk 0:01:00]}  Ra1 {[%clk 0:00:41]} 63. f6 {[%clk 0:01:00]}  Ke8 {[%clk 0:00:41]} 64. f7+ {[%clk 0:01:02]}  Kf8 {[%clk 0:00:46]} 65. Kf6 {[%clk 0:01:02]}  Rf1+ {[%clk 0:00:46]} 66. Ke6 {[%clk 0:01:02]}  Re1+ {[%clk 0:00:46]} 67. Kf6 {[%clk 0:01:02]}  Rf1+ {[%clk 0:00:46]} 68. Ke6 {[%clk 0:01:02]}  Re1+ {[%clk 0:00:46]} 1/2-1/2


[Site "http://www.Chess.com"]

[Event "FIDE World Rapid Chess Championship 2021"]
[White "Nasuta, Grzegorz"]
[Black "Dvirnyy, Danyyil"]
[WhiteFideId "1141686"]
[BlackFideId "817570"]
[WhiteElo "2345"]
[BlackElo "2550"]
[Result "1-0"]
[Round "12"]
[TimeControl "900+10"]
[Date "2021.12.28"]
[WhiteClock "0:00:37"]
[BlackClock "0:00:20"]

1. e4 {[%clk 0:15:19]}  e5 {[%clk 0:15:18]} 2. Nf3 {[%clk 0:15:19]}  Nc6 {[%clk 0:15:18]} 3. Bb5 {[%clk 0:15:27]}  a6 {[%clk 0:15:18]} 4. Ba4 {[%clk 0:15:27]}  Nf6 {[%clk 0:15:18]} 5. O-O {[%clk 0:15:27]}  Be7 {[%clk 0:15:18]} 6. d3 {[%clk 0:14:11]}  b5 {[%clk 0:16:18]} 7. Bb3 {[%clk 0:14:11]}  O-O {[%clk 0:16:18]} 8. a4 {[%clk 0:14:11]}  b4 {[%clk 0:16:18]} 9. Re1 {[%clk 0:14:11]}  d6 {[%clk 0:16:18]} 10. Nbd2 {[%clk 0:14:11]}  Be6 {[%clk 0:16:18]} 11. h3 {[%clk 0:14:11]}  Rb8 {[%clk 0:15:52]} 12. Nc4 {[%clk 0:12:58]}  Nd7 {[%clk 0:15:52]} 13. Be3 {[%clk 0:12:58]}  Bf6 {[%clk 0:15:52]} 14. a5 {[%clk 0:11:52]}  Nd4 {[%clk 0:11:29]} 15. Bxd4 {[%clk 0:11:52]}  exd4 {[%clk 0:11:29]} 16. Ncd2 {[%clk 0:11:52]}  Nc5 {[%clk 0:11:29]} 17. Bxe6 {[%clk 0:10:40]}  Nxe6 {[%clk 0:11:29]} 18. Nc4 {[%clk 0:10:48]}  g6 {[%clk 0:09:29]} 19. e5 {[%clk 0:07:54]}  dxe5 {[%clk 0:09:29]} 20. Nfxe5 {[%clk 0:07:54]}  Qd5 {[%clk 0:09:29]} 21. b3 {[%clk 0:07:54]}  Rfe8 {[%clk 0:09:29]} 22. Qg4 {[%clk 0:07:18]}  h5 {[%clk 0:07:09]} 23. Qe4 {[%clk 0:07:18]}  Qxe4 {[%clk 0:07:09]} 24. Rxe4 {[%clk 0:07:18]}  Nc5 {[%clk 0:07:09]} 25. Re2 {[%clk 0:04:39]}  Re6 {[%clk 0:07:03]} 26. Rae1 {[%clk 0:04:39]}  Rb5 {[%clk 0:07:03]} 27. Kf1 {[%clk 0:04:39]}  Kg7 {[%clk 0:05:29]} 28. g3 {[%clk 0:04:39]}  Nb7 {[%clk 0:05:29]} 29. f4 {[%clk 0:01:21]}  Nxa5 {[%clk 0:05:25]} 30. Ra1 {[%clk 0:01:21]}  Nb7 {[%clk 0:03:29]} 31. Nd7 {[%clk 0:00:59]}  Rxe2 {[%clk 0:03:29]} 32. Kxe2 {[%clk 0:00:59]}  a5 {[%clk 0:03:29]} 33. Kf3 {[%clk 0:00:59]}  Bd8 {[%clk 0:03:13]} 34. Nde5 {[%clk 0:00:33]}  Rc5 {[%clk 0:03:13]} 35. Ke4 {[%clk 0:00:33]}  f6 {[%clk 0:01:21]} 36. Nd7 {[%clk 0:00:35]}  Rb5 {[%clk 0:01:21]} 37. Kxd4 {[%clk 0:00:35]}  Kf7 {[%clk 0:01:21]} 38. Nb8 {[%clk 0:00:35]}  Rc5 {[%clk 0:01:21]} 39. Nd7 {[%clk 0:00:35]}  Rb5 {[%clk 0:01:21]} 40. Nb8 {[%clk 0:00:35]}  Rc5 {[%clk 0:01:21]} 41. g4 {[%clk 0:00:35]}  Be7 {[%clk 0:01:21]} 42. Ke3 {[%clk 0:00:35]}  Rd5 {[%clk 0:01:21]} 43. Nc6 {[%clk 0:00:35]}  Bc5+ {[%clk 0:01:21]} 44. d4 {[%clk 0:00:35]}  Bb6 {[%clk 0:01:21]} 45. Ke4 {[%clk 0:00:35]}  Rb5 {[%clk 0:00:20]} 46. f5 {[%clk 0:00:37]}  gxf5+ {[%clk 0:00:20]} 47. gxf5 {[%clk 0:00:37]}  Ke8 {[%clk 0:00:20]} 48. Rg1 {[%clk 0:00:37]}  Nd6+ {[%clk 0:00:20]} 49. Nxd6+ {[%clk 0:00:37]}  cxd6 {[%clk 0:00:20]} 50. Rg7 {[%clk 0:00:37]}  Kf8 {[%clk 0:00:20]} 51. Rb7 {[%clk 0:00:37]}  d5+ {[%clk 0:00:20]} 52. Kd3 {[%clk 0:00:37]}  Ke8 {[%clk 0:00:20]} 53. Na7 {[%clk 0:00:37]} 1-0


[Site "http://www.Chess.com"]

[Event "FIDE World Rapid Chess Championship 2021"]
[White "Carlsson, Pontus"]
[Black "Toczek, Grzegorz"]
[WhiteFideId "1705814"]
[BlackFideId "1106457"]
[WhiteElo "2436"]
[BlackElo "2220"]
[Result "1-0"]
[Round "12"]
[TimeControl "900+10"]
[Date "2021.12.28"]
[WhiteClock "0:00:17"]
[BlackClock "0:00:10"]

1. e4 {[%clk 0:15:19]}  e5 {[%clk 0:15:00]} 2. Nf3 {[%clk 0:15:19]}  Nc6 {[%clk 0:15:00]} 3. d4 {[%clk 0:15:19]}  exd4 {[%clk 0:15:00]} 4. Nxd4 {[%clk 0:15:19]}  Nf6 {[%clk 0:15:00]} 5. Nc3 {[%clk 0:15:19]}  Bb4 {[%clk 0:13:18]} 6. Nxc6 {[%clk 0:15:53]}  bxc6 {[%clk 0:13:18]} 7. Bd3 {[%clk 0:15:53]}  d5 {[%clk 0:13:18]} 8. exd5 {[%clk 0:15:53]}  Qe7+ {[%clk 0:13:18]} 9. Qe2 {[%clk 0:15:53]}  Qxe2+ {[%clk 0:13:18]} 10. Kxe2 {[%clk 0:15:53]}  cxd5 {[%clk 0:13:18]} 11. Nb5 {[%clk 0:15:53]}  Kd8 {[%clk 0:12:21]} 12. Rd1 {[%clk 0:15:33]}  c6 {[%clk 0:10:21]} 13. Nd4 {[%clk 0:15:33]}  Bd7 {[%clk 0:10:21]} 14. c4 {[%clk 0:15:33]}  Re8+ {[%clk 0:10:25]} 15. Kf1 {[%clk 0:13:09]}  Ke7 {[%clk 0:10:25]} 16. Bg5 {[%clk 0:13:16]}  h6 {[%clk 0:07:01]} 17. Bh4 {[%clk 0:13:16]}  g5 {[%clk 0:07:01]} 18. Bg3 {[%clk 0:13:16]}  Nh5 {[%clk 0:05:54]} 19. cxd5 {[%clk 0:12:27]}  cxd5 {[%clk 0:05:54]} 20. Bb5 {[%clk 0:12:27]}  Nxg3+ {[%clk 0:05:49]} 21. hxg3 {[%clk 0:12:14]}  Rab8 {[%clk 0:05:49]} 22. Bxd7 {[%clk 0:12:23]}  Kxd7 {[%clk 0:02:40]} 23. Rd3 {[%clk 0:08:08]}  Bc5 {[%clk 0:02:49]} 24. Nb3 {[%clk 0:06:34]}  Kd6 {[%clk 0:02:01]} 25. Rad1 {[%clk 0:06:34]}  Re5 {[%clk 0:02:01]} 26. Nd2 {[%clk 0:05:32]}  Rf5 {[%clk 0:00:00]} 27. Ne4+ {[%clk 0:05:32]}  Kc6 {[%clk 0:00:00]} 28. Nxc5 {[%clk 0:05:32]}  Kxc5 {[%clk 0:00:00]} 29. Rc3+ {[%clk 0:05:32]}  Kd6 {[%clk 0:00:00]} 30. Rd2 {[%clk 0:05:32]}  Re5 {[%clk 0:00:00]} 31. Ra3 {[%clk 0:05:32]}  Rbe8 {[%clk 0:00:00]} 32. f3 {[%clk 0:05:32]}  R8e7 {[%clk 0:00:00]} 33. Ra6+ {[%clk 0:05:32]}  Kc5 {[%clk 0:00:00]} 34. Rxh6 {[%clk 0:00:36]}  Re1+ {[%clk 0:00:10]} 35. Kf2 {[%clk 0:00:17]}  Ra1 {[%clk 0:00:10]} 36. g4 {[%clk 0:00:17]}  Rxa2 {[%clk 0:00:10]} 37. b4+ {[%clk 0:00:17]} 1-0


[Site "http://www.Chess.com"]

[Event "FIDE World Rapid Chess Championship 2021"]
[White "Dragnev, Valentin"]
[Black "Krasenkow, Michal"]
[WhiteFideId "1634852"]
[BlackFideId "1113100"]
[WhiteElo "2409"]
[BlackElo "2430"]
[Result "1/2-1/2"]
[Round "12"]
[TimeControl "900+10"]
[Date "2021.12.28"]
[WhiteClock "0:00:17"]
[BlackClock "0:07:58"]

1. e4 {[%clk 0:15:27]}  g6 {[%clk 0:15:29]} 2. d4 {[%clk 0:15:27]}  Bg7 {[%clk 0:15:29]} 3. Nf3 {[%clk 0:15:27]}  d6 {[%clk 0:15:29]} 4. Be3 {[%clk 0:15:27]}  Nf6 {[%clk 0:15:29]} 5. Nc3 {[%clk 0:15:27]}  c6 {[%clk 0:15:29]} 6. h3 {[%clk 0:15:27]}  O-O {[%clk 0:15:29]} 7. a4 {[%clk 0:15:27]}  a5 {[%clk 0:15:29]} 8. Be2 {[%clk 0:15:27]}  Na6 {[%clk 0:15:29]} 9. O-O {[%clk 0:15:27]}  Nb4 {[%clk 0:15:29]} 10. Re1 {[%clk 0:14:39]}  Qc7 {[%clk 0:16:25]} 11. Qd2 {[%clk 0:14:39]}  b6 {[%clk 0:16:25]} 12. Bf1 {[%clk 0:14:39]}  Bb7 {[%clk 0:16:25]} 13. Rad1 {[%clk 0:14:39]}  Rad8 {[%clk 0:16:25]} 14. Bf4 {[%clk 0:14:39]}  Nd7 {[%clk 0:16:28]} 15. Bg5 {[%clk 0:12:58]}  f6 {[%clk 0:16:28]} 16. Bf4 {[%clk 0:12:02]}  e5 {[%clk 0:14:25]} 17. Bh2 {[%clk 0:12:02]}  Kh8 {[%clk 0:14:25]} 18. Nb1 {[%clk 0:12:02]}  d5 {[%clk 0:14:25]} 19. exd5 {[%clk 0:11:48]}  Nxd5 {[%clk 0:12:38]} 20. dxe5 {[%clk 0:11:48]}  Nxe5 {[%clk 0:12:38]} 21. Nxe5 {[%clk 0:11:48]}  fxe5 {[%clk 0:12:38]} 22. Nc3 {[%clk 0:11:48]}  Nf4 {[%clk 0:12:38]} 23. Qe3 {[%clk 0:11:48]}  c5 {[%clk 0:12:22]} 24. Nb5 {[%clk 0:10:33]}  Qb8 {[%clk 0:12:22]} 25. c3 {[%clk 0:08:43]}  Bc6 {[%clk 0:12:10]} 26. Bxf4 {[%clk 0:08:03]}  exf4 {[%clk 0:11:17]} 27. Qe6 {[%clk 0:08:03]}  Rf6 {[%clk 0:11:17]} 28. Rxd8+ {[%clk 0:08:03]}  Qxd8 {[%clk 0:11:17]} 29. Qe7 {[%clk 0:08:03]}  Qxe7 {[%clk 0:11:17]} 30. Rxe7 {[%clk 0:08:03]}  h5 {[%clk 0:11:17]} 31. Bc4 {[%clk 0:05:19]}  g5 {[%clk 0:11:02]} 32. Re5 {[%clk 0:05:19]}  Bh6 {[%clk 0:11:02]} 33. Bd5 {[%clk 0:05:19]}  Bd7 {[%clk 0:11:02]} 34. Re7 {[%clk 0:04:08]}  Bf5 {[%clk 0:10:20]} 35. Nc7 {[%clk 0:04:08]}  g4 {[%clk 0:10:20]} 36. hxg4 {[%clk 0:04:08]}  hxg4 {[%clk 0:10:20]} 37. Ne8 {[%clk 0:04:08]}  Rg6 {[%clk 0:10:05]} 38. Be4 {[%clk 0:03:41]}  Re6 {[%clk 0:10:05]} 39. Rxe6 {[%clk 0:03:41]}  Bxe6 {[%clk 0:10:05]} 40. Nc7 {[%clk 0:03:41]}  Bb3 {[%clk 0:10:05]} 41. Bc6 {[%clk 0:03:41]}  f3 {[%clk 0:10:05]} 42. gxf3 {[%clk 0:03:41]}  gxf3 {[%clk 0:10:05]} 43. Na8 {[%clk 0:03:41]}  Bc1 {[%clk 0:10:05]} 44. Nxb6 {[%clk 0:03:41]}  Bxb2 {[%clk 0:10:05]} 45. c4 {[%clk 0:03:41]}  Bd1 {[%clk 0:10:05]} 46. Kh2 {[%clk 0:03:21]}  Be2 {[%clk 0:09:25]} 47. Kg3 {[%clk 0:03:21]}  Be5+ {[%clk 0:09:25]} 48. Kg4 {[%clk 0:03:21]}  Bc7 {[%clk 0:09:25]} 49. Nd5 {[%clk 0:03:21]}  Be5 {[%clk 0:08:11]} 50. Nb6 {[%clk 0:02:41]}  Bc7 {[%clk 0:08:11]} 51. Nd7 {[%clk 0:02:41]}  Bxc4 {[%clk 0:08:11]} 52. Nxc5 {[%clk 0:02:41]}  Bb6 {[%clk 0:07:58]} 53. Ne4 {[%clk 0:00:17]}  Bd3 {[%clk 0:07:58]} 54. Kxf3 {[%clk 0:00:17]}  Bxe4+ {[%clk 0:07:58]} 55. Bxe4 {[%clk 0:00:17]}  Kg7 {[%clk 0:07:58]} 1/2-1/2


[Site "http://www.Chess.com"]